fUST/lending_fUST_20241127
["ID","MTS","AMOUNT","RATE_DAILY","PERIOD"]
[343483624,1732657838692,-500.0,0.00029555,2]
[343483626,1732657838702,-178.33,0.00029777,10]
[343483628,1732657838712,-13885.5012684,0.00029787,2]
[343483632,1732657838741,-9178.57663768,0.00029787,2]
[343483824,1732657840759,-72934.32963869,0.00029787,2]
[343483826,1732657840770,-330.72241007,0.00029789,2]
[343483828,1732657840779,-910.40962732,0.00029789,2]
[343483830,1732657840790,-454.37866255,0.00029828,8]
[343483832,1732657840800,-502.32,0.00029839,3]
[343483834,1732657840810,-151.0,0.0002984,7]
[343483836,1732657840820,-151.0,0.0002984,7]
[343483838,1732657840829,-151.0,0.0002984,7]
[343483839,1732657840838,-151.0,0.0002984,7]
[343483841,1732657840848,-151.0,0.0002984,7]
[343483843,1732657840858,-151.0,0.0002984,7]
[343483845,1732657840872,-151.0,0.0002984,7]
[343483847,1732657840882,-151.0,0.0002984,7]
[343483849,1732657840891,-151.0,0.0002984,7]
[343483850,1732657840900,-151.0,0.0002984,7]
[343483852,1732657840910,-151.0,0.0002984,7]
[343483854,1732657840920,-151.0,0.0002984,7]
[343483856,1732657840930,-159.721064,0.0002984,7]
[343483858,1732657840939,-329.298769,0.0002984,7]
[343483860,1732657840949,-329.298769,0.0002984,7]
[343483861,1732657840959,-329.298769,0.0002984,7]
[343483863,1732657840969,-329.298769,0.0002984,7]
[343483865,1732657840980,-329.298769,0.0002984,7]
[343483867,1732657840989,-329.298769,0.0002984,7]
[343483868,1732657840999,-329.298769,0.0002984,7]
[343483870,1732657841009,-329.298769,0.0002984,7]
[343483872,1732657841018,-329.298769,0.0002984,7]
[343483874,1732657841028,-329.298769,0.0002984,7]
[343483876,1732657841038,-329.298769,0.0002984,7]
[343483878,1732657841047,-329.298769,0.0002984,7]
[343483879,1732657841056,-329.298769,0.0002984,7]
[343483881,1732657841066,-329.298769,0.0002984,7]
[343483883,1732657841075,-329.298769,0.0002984,7]
[343483885,1732657841085,-329.298769,0.0002984,7]
[343483887,1732657841094,-329.298769,0.0002984,7]
[343483889,1732657841105,-329.298769,0.0002984,7]
[343483890,1732657841119,-329.298769,0.0002984,7]
[343483892,1732657841128,-329.29877,0.0002984,7]
[343483894,1732657841138,-151.0,0.0002984,7]
[343483896,1732657841148,-151.0,0.0002984,7]
[343483898,1732657841157,-151.0,0.0002984,7]
[343483900,1732657841167,-151.0,0.0002984,7]
[343483901,1732657841176,-151.0,0.0002984,7]
[343483903,1732657841185,-151.0,0.0002984,7]
[343483905,1732657841195,-289.038708,0.0002984,7]
[343483907,1732657841205,-4036.03293721,0.00029885,2]
[343483909,1732657841215,-502.32,0.00029886,3]
[343483910,1732657841224,-152.143134,0.00029887,7]
[343483912,1732657841233,-151.0,0.00029887,7]
[343483914,1732657841243,-186.83499,0.00029887,7]
[343483916,1732657841253,-151.0,0.00029887,7]
[343483918,1732657841263,-151.0,0.00029887,7]
[343483920,1732657841272,-151.0,0.00029887,7]
[343483921,1732657841282,-168.686256,0.00029887,7]
[343483923,1732657841292,-151.0,0.00029887,7]
[343483925,1732657841302,-151.0,0.00029887,7]
[343483927,1732657841311,-151.0,0.00029887,7]
[343483929,1732657841321,-213.059496,0.00029887,7]
[343483931,1732657841330,-155.123807,0.00029887,7]
[343483932,1732657841339,-156.06048075,0.00029887,10]
[343483934,1732657841349,-150.15,0.00029887,10]
[343483936,1732657841358,-500.0,0.00029887,10]
[343483938,1732657841370,-502.32,0.00029888,3]
[343483940,1732657841379,-502.32,0.00029888,3]
[343483942,1732657841389,-502.32,0.00029888,3]
[343483944,1732657841399,-502.32,0.00029888,3]
[343483945,1732657841409,-502.49,0.00029888,3]
[343483947,1732657841419,-151.0,0.00029889,7]
[343483949,1732657841429,-151.0,0.00029889,7]
[343483951,1732657841438,-151.0,0.00029889,7]
[343483953,1732657841447,-151.0,0.00029889,7]
[343483955,1732657841457,-288.587169,0.00029889,7]
[343483956,1732657841467,-151.0,0.00029889,7]
[343483958,1732657841476,-151.0,0.00029889,7]
[343483960,1732657841486,-151.0,0.00029889,7]
[343483962,1732657841495,-151.0,0.00029889,7]
[343483964,1732657841504,-151.0,0.00029889,7]
[343483965,1732657841514,-151.0,0.00029889,7]
[343483967,1732657841524,-151.0,0.00029889,7]
[343483977,1732657841623,-151.0,0.00029889,7]
[343483978,1732657841634,-273.738274,0.00029889,7]
[343483980,1732657841644,-151.0,0.00029889,7]
[343483982,1732657841654,-151.0,0.00029889,7]
[343483984,1732657841664,-151.0,0.00029889,7]
[343483986,1732657841674,-69.21272801,0.00029889,7]
[343484267,1732657845015,-81.78727199,0.00029889,7]
[343484270,1732657845026,-151.0,0.00029889,7]
[343484272,1732657845036,-151.0,0.00029889,7]
[343484274,1732657845046,-151.0,0.00029889,7]
[343484276,1732657845055,-151.0,0.00029889,7]
[343484278,1732657845066,-151.0,0.00029889,7]
[343484280,1732657845075,-151.0,0.00029889,7]
[343484283,1732657845085,-151.0,0.00029889,7]
[343484285,1732657845095,-151.0,0.00029889,7]
[343484289,1732657845106,-151.0,0.00029889,7]
[343484290,1732657845117,-151.0,0.00029889,7]
[343484292,1732657845127,-151.0,0.00029889,7]
[343484294,1732657845136,-151.0,0.00029889,7]
[343484297,1732657845146,-151.0,0.00029889,7]
[343484299,1732657845156,-276.076616,0.00029889,7]
[343484301,1732657845166,-151.0,0.00029889,7]
[343484303,1732657845176,-151.0,0.00029889,7]
[343484305,1732657845185,-151.0,0.00029889,7]
[343484307,1732657845194,-299.43702,0.00029889,7]
[343484309,1732657845204,-263.721029,0.00029889,7]
[343484311,1732657845213,-263.721029,0.00029889,7]
[343484313,1732657845222,-263.721029,0.00029889,7]
[343484315,1732657845232,-263.721029,0.00029889,7]
[343484317,1732657845241,-263.721029,0.00029889,7]
[343484318,1732657845250,-151.0,0.00029889,7]
[343484320,1732657845260,-263.721029,0.00029889,7]
[343484322,1732657845270,-151.0,0.00029889,7]
[343484324,1732657845279,-263.721029,0.00029889,7]
[343484326,1732657845289,-151.0,0.00029889,7]
[343484328,1732657845298,-263.721029,0.00029889,7]
[343484330,1732657845308,-151.0,0.00029889,7]
[343484332,1732657845318,-213.962436,0.00029889,7]
[343484334,1732657845328,-263.721029,0.00029889,7]
[343484336,1732657845338,-263.721029,0.00029889,7]
[343484338,1732657845347,-263.721029,0.00029889,7]
[343484340,1732657845357,-263.721029,0.00029889,7]
[343484342,1732657845369,-263.721029,0.00029889,7]
[343484344,1732657845378,-263.721029,0.00029889,7]
[343484346,1732657845387,-263.721029,0.00029889,7]
[343484348,1732657845397,-263.721029,0.00029889,7]
[343484350,1732657845407,-263.721029,0.00029889,7]
[343484352,1732657845416,-263.721029,0.00029889,7]
[343484354,1732657845425,-263.721029,0.00029889,7]
[343484356,1732657845434,-263.721029,0.00029889,7]
[343484358,1732657845443,-151.0,0.00029889,7]
[343484360,1732657845452,-151.0,0.00029889,7]
[343484362,1732657845461,-151.0,0.00029889,7]
[343484364,1732657845471,-151.0,0.00029889,7]
[343484366,1732657845479,-151.0,0.00029889,7]
[343484368,1732657845489,-151.0,0.00029889,7]
[343484370,1732657845499,-151.0,0.00029889,7]
[343484372,1732657845508,-151.0,0.00029889,7]
[343484374,1732657845517,-151.0,0.00029889,7]
[343484376,1732657845526,-151.0,0.00029889,7]
[343484378,1732657845536,-151.0,0.00029889,7]
[343484380,1732657845545,-151.0,0.00029889,7]
[343484382,1732657845555,-232.171282,0.00029889,7]
[343484384,1732657845565,-151.0,0.00029889,7]
[343484386,1732657845574,-151.0,0.00029889,7]
[343484388,1732657845584,-151.0,0.00029889,7]
[343484390,1732657845593,-151.0,0.00029889,7]
[343484392,1732657845603,-151.0,0.00029889,7]
[343484394,1732657845614,-193.4893,0.00029889,7]
[343484396,1732657845627,-151.0,0.00029889,7]
[343484397,1732657845637,-151.0,0.00029889,7]
[343484400,1732657845646,-151.0,0.00029889,7]
[343484401,1732657845656,-151.0,0.00029889,7]
[343484403,1732657845667,-151.0,0.00029889,7]
[343484405,1732657845676,-209.33079,0.00029889,7]
[343484408,1732657845686,-578.979188,0.00029889,7]
[343484409,1732657845697,-578.979188,0.00029889,7]
[343484411,1732657845707,-578.979188,0.00029889,7]
[343484414,1732657845718,-578.979188,0.00029889,7]
[343484416,1732657845727,-578.979188,0.00029889,7]
[343484417,1732657845737,-578.979188,0.00029889,7]
[343484420,1732657845747,-578.979188,0.00029889,7]
[343484421,1732657845757,-578.979188,0.00029889,7]
[343484424,1732657845766,-578.979188,0.00029889,7]
[343484425,1732657845776,-578.979188,0.00029889,7]
[343484427,1732657845786,-578.979188,0.00029889,7]
[343484429,1732657845796,-578.979188,0.00029889,7]
[343484431,1732657845806,-578.979188,0.00029889,7]
[343484434,1732657845816,-578.979188,0.00029889,7]
[343484436,1732657845826,-578.979188,0.00029889,7]
[343484437,1732657845835,-578.979188,0.00029889,7]
[343484439,1732657845844,-578.979188,0.00029889,7]
[343484441,1732657845854,-578.979188,0.00029889,7]
[343484445,1732657845864,-578.979188,0.00029889,7]
[343484447,1732657845878,-578.979183,0.00029889,7]
[343484449,1732657845888,-255.28939,0.00029889,7]
[343484451,1732657845897,-255.28939,0.00029889,7]
[343484453,1732657845906,-255.28939,0.00029889,7]
[343484455,1732657845917,-255.28939,0.00029889,7]
[343484457,1732657845926,-255.28939,0.00029889,7]
[343484459,1732657845935,-255.28939,0.00029889,7]
[343484461,1732657845944,-255.28939,0.00029889,7]
[343484463,1732657845953,-255.28939,0.00029889,7]
[343484465,1732657845963,-255.28939,0.00029889,7]
[343484467,1732657845972,-255.28939,0.00029889,7]
[343484469,1732657845981,-255.28939,0.00029889,7]
[343484471,1732657845990,-255.28939,0.00029889,7]
[343484473,1732657846000,-255.28939,0.00029889,7]
[343484475,1732657846009,-255.28939,0.00029889,7]
[343484478,1732657846018,-255.28939,0.00029889,7]
[343484482,1732657846027,-255.28939,0.00029889,7]
[343484485,1732657846037,-255.28939,0.00029889,7]
[343484487,1732657846047,-255.28939,0.00029889,7]
[343484489,1732657846057,-255.28939,0.00029889,7]
[343484491,1732657846066,-255.289395,0.00029889,7]
[343484493,1732657846076,-170.95218,0.00029889,7]
[343484495,1732657846085,-170.95218,0.00029889,7]
[343484497,1732657846094,-170.95218,0.00029889,7]
[343484499,1732657846105,-170.95218,0.00029889,7]
[343484501,1732657846114,-170.95218,0.00029889,7]
[343484503,1732657846128,-170.95218,0.00029889,7]
[343484505,1732657846137,-170.95218,0.00029889,7]
[343484507,1732657846147,-170.95218,0.00029889,7]
[343484509,1732657846156,-170.95218,0.00029889,7]
[343484511,1732657846166,-170.95218,0.00029889,7]
[343484513,1732657846175,-170.95218,0.00029889,7]
[343484514,1732657846184,-170.95218,0.00029889,7]
[343484517,1732657846194,-170.95218,0.00029889,7]
[343484519,1732657846204,-170.95218,0.00029889,7]
[343484521,1732657846213,-170.95218,0.00029889,7]
[343484523,1732657846223,-170.95218,0.00029889,7]
[343484524,1732657846232,-170.95218,0.00029889,7]
[343484527,1732657846242,-170.95218,0.00029889,7]
[343484528,1732657846251,-170.95218,0.00029889,7]
[343484529,1732657846260,-170.952184,0.00029889,7]
[343484530,1732657846271,-151.0,0.00029889,7]
[343484531,1732657846281,-151.0,0.00029889,7]
[343484532,1732657846290,-296.853474,0.00029889,7]
[343484533,1732657846299,-151.0,0.00029889,7]
[343484534,1732657846310,-151.0,0.00029889,7]
[343484535,1732657846319,-151.0,0.00029889,7]
[343484536,1732657846328,-151.0,0.00029889,7]
[343484537,1732657846338,-151.0,0.00029889,7]
[343484538,1732657846348,-151.0,0.00029889,7]
[343484539,1732657846357,-151.0,0.00029889,7]
[343484540,1732657846368,-151.0,0.00029889,7]
[343484541,1732657846381,-151.0,0.00029889,7]
[343484542,1732657846391,-212.89352,0.00029889,7]
[343484543,1732657846400,-293.084184,0.00029889,7]
[343484544,1732657846410,-282.02707005,0.00029889,2]
[343484545,1732657846420,-177287.1384733,0.00029889,10]
[343484549,1732657846472,-3319.41526072,0.00029889,10]
[343484559,1732657846555,-10096.28406354,0.00029889,10]
[343484562,1732657846568,-2904.42135011,0.00029889,10]
[343486009,1732657932549,163.554451,0.00013973,2]
[343486013,1732658715454,166.818058,0.00013973,2]
[343486017,1732658827149,-166.818058,0.00022174,2]
[343486018,1732658827177,-5000.0,0.00022307,2]
[343486019,1732658827199,-235.7522136,0.00022532,2]
[343486020,1732658827220,-355.20138037,0.00022759,2]
[343486021,1732658827242,-909.98249939,0.00025471,2]
[343486022,1732658850136,-3861.7224616,0.00025471,2]
[343486115,1732659039132,-300.0,0.00025469,2]
[343486117,1732659039142,-270.00975429,0.0002547,2]
[343486495,1732659045098,-29.99024571,0.0002547,2]
[343486496,1732659045111,-876.00975429,0.0002547,2]
[343486497,1732659045226,-1996.99024571,0.0002547,2]
[343486501,1732659045240,-20128.29503901,0.00025471,2]
[343486503,1732659045250,-165.0,0.00027,2]
[343486505,1732659045260,-164.833155,0.00027395,2]
[343486507,1732659045270,-420.0,0.00027579,2]
[343486509,1732659045280,-162.853,0.0002773,17]
[343486511,1732659045290,-500.0,0.00027731,3]
[343486513,1732659045302,-533.142381,0.0002776,2]
[343486515,1732659045313,-172.135066,0.0002776,2]
[343486517,1732659045323,-533.142381,0.00028107,2]
[343486519,1732659045333,-533.142381,0.00028454,2]
[343486521,1732659045343,-165.0,0.00028767,2]
[343486523,1732659045353,-533.142381,0.00028801,2]
[343486525,1732659045365,-275.1,0.000289,2]
[343486527,1732659045375,-533.142381,0.00029148,2]
[343486529,1732659045385,-150.0,0.000294,2]
[343486531,1732659045395,-6096.62481949,0.000294,7]
[343486533,1732659045404,-153.65,0.000294,31]
[343486535,1732659045414,-153.65,0.000294,31]
[343486537,1732659045424,-153.65,0.000294,31]
[343486539,1732659045434,-153.65,0.000294,31]
[343486542,1732659045444,-153.65,0.000294,31]
[343486544,1732659045454,-153.65,0.000294,31]
[343486546,1732659045464,-153.65,0.000294,31]
[343486547,1732659045473,-150.173,0.00029558,2]
[343486548,1732659045483,-150.0,0.00029558,2]
[343486549,1732659045492,-1426.84,0.000296,2]
[343486550,1732659045502,-1000.0,0.00029681,2]
[343486551,1732659045511,-1000.0,0.00029681,2]
[343486552,1732659045521,-1000.0,0.00029681,2]
[343486553,1732659045533,-1000.0,0.00029681,2]
[343486554,1732659045544,-1000.0,0.00029681,2]
[343486555,1732659045554,-1000.0,0.00029681,2]
[343486556,1732659045569,-787.37416535,0.00029681,2]
[343486557,1732659045579,-301.803,0.00029682,15]
[343486558,1732659045589,-891.69,0.00029779,10]
[343486559,1732659045599,-200.94160495,0.00029788,2]
[343486560,1732659045609,-197.35764846,0.00029788,2]
[343486561,1732659045621,-166.73756596,0.00029788,2]
[343486562,1732659045631,-180.29455822,0.00029789,3]
[343486563,1732659045640,-132761.49686778,0.00029789,2]
[343486564,1732659045651,-587.0,0.00029863,2]
[343486565,1732659045661,-151.0,0.00029889,7]
[343486566,1732659045671,-282.02707006,0.00029892,2]
[343486567,1732659045682,-151.0,0.00029892,7]
[343486568,1732659045692,-151.0,0.00029892,7]
[343486569,1732659045702,-151.0,0.00029892,7]
[343486570,1732659045712,-151.0,0.00029892,7]
[343486571,1732659045721,-151.0,0.00029892,7]
[343486572,1732659045730,-151.0,0.00029892,7]
[343486573,1732659045740,-167.05342504,0.00029892,7]
[343486574,1732659045750,-500.0,0.00029892,7]
[343486575,1732659045760,-258330.56246605,0.00029892,10]
[343486584,1732659683307,161.563959,0.00013973,2]
[343486585,1732659683543,161.563959,0.00021209,2]
[343486597,1732660031110,-182.654711,0.00027162,2]
[343486598,1732660031133,-435.7401027,0.00027397,3]
[343486599,1732660035095,-121.97459503,0.00027397,3]
[343486600,1732660035117,-235.7522136,0.00027397,3]
[343486601,1732660035141,-160.046354,0.00027556,2]
[343486602,1732660035162,-160.046354,0.00028241,2]
[343486603,1732660035184,-191.2916861,0.00028335,2]
[343486604,1732660035207,-300.0,0.00028395,2]
[343486605,1732660035229,-300.0,0.00028395,2]
[343486606,1732660035261,-1775.0,0.00028395,2]
[343486607,1732660035291,-500.0,0.00028396,3]
[343486608,1732660035314,-500.0,0.00028396,3]
[343486609,1732660035337,-500.0,0.00028396,3]
[343486610,1732660035361,-500.0,0.00028396,3]
[343486611,1732660035385,-394.5440366,0.00028396,3]
[343486612,1732660049123,-302.2459634,0.00028396,3]
[343486613,1732660049148,-500.0,0.00028396,3]
[343486614,1732660049171,-500.0,0.00028396,3]
[343486615,1732660049193,-1759.51352324,0.00028397,2]
[343486618,1732660091844,6498.1140515,0.00021,2]
[343486628,1732660121529,2644.25,0.00020377,2]
[343486632,1732660206057,5000.0,0.00020121,2]
[343486648,1732660231839,-277.97356952,0.0002201,16]
[343486649,1732660231850,-500.0,0.0002496,7]
[343486650,1732660231863,-500.0,0.00025782,7]
[343486651,1732660231872,-2273.07293742,0.00026,30]
[343486652,1732660231882,-521.2454557,0.00027839,2]
[343486653,1732660231892,-191.2916861,0.00028345,2]
[343486654,1732660231902,-300.0,0.00028395,2]
[343486655,1732660231911,-492.27,0.00028396,3]
[343486656,1732660231922,-500.0,0.00028396,3]
[343486657,1732660231934,-500.0,0.00028396,3]
[343486658,1732660231943,-83.99007804,0.00028396,3]
[343486661,1732660231957,-416.00992196,0.00028396,3]
[343486663,1732660231967,-202.89007808,0.00028396,3]
[343486665,1732660231979,-297.10992192,0.00028396,3]
[343486667,1732660231989,-500.0,0.00028396,3]
[343486669,1732660231998,-500.0,0.00028396,3]
[343486670,1732660232008,-500.0,0.00028396,3]
[343486671,1732660232019,-500.0,0.00028396,3]
[343486672,1732660232029,-500.0,0.00028396,3]
[343486673,1732660232039,-500.0,0.00028396,3]
[343486674,1732660232049,-500.0,0.00028396,3]
[343486675,1732660232060,-667.76,0.00028396,3]
[343486676,1732660232070,-246.65,0.00028396,3]
[343486677,1732660232080,-4508.07972807,0.00028397,2]
[343486719,1732660238154,-500.0,0.00027426,7]
[343486721,1732660238164,-115.44818142,0.00028396,3]
[343487177,1732660242819,-254.40801842,0.00028396,3]
[343487179,1732660242829,-500.0,0.00028396,3]
[343487181,1732660242838,-18632.40674869,0.00028397,2]
[343487183,1732660242848,-161.563959,0.00028445,2]
[343487185,1732660242857,-248.0535565,0.0002881,2]
[343487187,1732660242871,-275.1,0.000289,2]
[343487191,1732660242883,-160.046354,0.00028926,2]
[343487197,1732660242903,-500.0,0.0002907,7]
[343487203,1732660242916,-5024.05285944,0.000294,7]
[343487207,1732660242926,-153.66,0.000294,31]
[343487211,1732660242936,-153.66,0.000294,31]
[343487213,1732660242946,-153.66,0.000294,31]
[343487215,1732660242956,-153.66,0.000294,31]
[343487217,1732660242965,-153.66,0.000294,31]
[343487219,1732660242975,-153.66,0.000294,31]
[343487221,1732660242986,-1284.16,0.000296,2]
[343487223,1732660242996,-246.4,0.0002979,3]
[343487225,1732660243006,-667.76,0.0002979,3]
[343487227,1732660243019,-500.0,0.00029791,3]
[343487230,1732660243035,-500.0,0.00029791,3]
[343487232,1732660243046,-261.58,0.00029791,3]
[343487234,1732660243056,-500.0,0.00029791,3]
[343487236,1732660243066,-500.0,0.00029791,3]
[343487238,1732660243075,-500.0,0.00029791,3]
[343487240,1732660243085,-500.0,0.00029791,3]
[343487242,1732660243096,-500.0,0.00029791,3]
[343487244,1732660243105,-480.19772697,0.00029791,3]
[343487246,1732660243115,-500.0,0.00029791,3]
[343487248,1732660243125,-159.22708423,0.00029792,2]
[343487250,1732660243135,-191.2916861,0.00029792,2]
[343487252,1732660243145,-3678.34959375,0.00029792,2]
[343487254,1732660243155,-500.0,0.00029889,3]
[343487256,1732660243165,-500.0,0.00029889,3]
[343487258,1732660243174,-500.0,0.00029889,3]
[343487260,1732660243184,-500.0,0.00029889,3]
[343487262,1732660243195,-500.0,0.00029889,3]
[343487264,1732660243204,-500.0,0.00029889,3]
[343487266,1732660243214,-500.0,0.00029889,3]
[343487268,1732660243224,-500.0,0.00029889,3]
[343487270,1732660243233,-40.63142721,0.00029889,3]
[343487271,1732660243247,-459.36857279,0.00029889,3]
[343487272,1732660243257,-500.0,0.00029889,3]
[343487273,1732660243267,-667.76,0.00029889,3]
[343487274,1732660243277,-667.76,0.00029889,3]
[343487275,1732660243287,-667.76,0.00029889,3]
[343487276,1732660243296,-382.00102096,0.00029889,3]
[343487444,1732660298463,328.58546048,0.0002968,120]
[343487445,1732660397037,171.131923,0.00013973,2]
[343487446,1732660397178,171.131923,0.00020447,2]
[343487448,1732660445418,2636.523755,0.0002968,120]
[343487449,1732661045891,165.585403,0.00013973,2]
[343487450,1732661046295,165.585403,0.00020447,2]
[343487455,1732661248116,-164.833155,0.00026547,2]
[343487456,1732661248138,-3737.45116664,0.00026652,2]
[343487457,1732661248160,-546.982727,0.0002681,2]
[343487458,1732661248183,-249.6191169,0.00026821,2]
[343487459,1732661250148,-63.17155385,0.00026821,2]
[343487460,1732661250170,-165.585403,0.00026921,2]
[343487461,1732661250193,-300.0,0.00026955,2]
[343487462,1732661250215,-300.0,0.00026955,2]
[343487463,1732661250235,-5663.0,0.00026955,2]
[343487464,1732661250258,-174.35480606,0.00026956,2]
[343487498,1732661432208,-1752.18715898,0.000267,2]
[343487499,1732661432220,-5671.38750054,0.000267,2]
[343487613,1732661438758,-1326.13898356,0.000267,2]
[343487744,1732661440055,-814.24486242,0.000267,2]
[343487746,1732661440066,-454.04600394,0.00026821,4]
[343487748,1732661440076,-306.468567,0.00026952,2]
[343487750,1732661440086,-1715.25530036,0.00026956,2]
[343487752,1732661440102,-708.59088568,0.00026956,2]
[343487754,1732661440112,-455.23979383,0.00027089,4]
[343487756,1732661440122,-104.58869075,0.00027495,2]
[343488215,1732661446036,-442.39403625,0.00027495,2]
[343488216,1732661446047,-546.982727,0.0002818,2]
[343488217,1732661446056,-975.24166803,0.00028295,2]
[343488218,1732661446066,-533.56,0.00028394,3]
[343488219,1732661446076,-318.73784147,0.00028395,2]
[343488220,1732661446086,-169.576,0.00028395,19]
[343488221,1732661446095,-206.297459,0.00028395,19]
[343488222,1732661446106,-500.0,0.00028395,3]
[343488223,1732661446115,-500.0,0.00028395,3]
[343488224,1732661446125,-500.0,0.00028395,3]
[343488225,1732661446135,-500.0,0.00028395,3]
[343488226,1732661446147,-500.0,0.00028395,3]
[343488227,1732661446159,-500.0,0.00028395,3]
[343488228,1732661446170,-500.0,0.00028395,3]
[343488229,1732661446180,-500.0,0.00028395,3]
[343488230,1732661446190,-500.0,0.00028395,3]
[343488231,1732661446200,-500.0,0.00028395,3]
[343488233,1732661446211,-500.0,0.00028395,3]
[343488235,1732661446221,-617.4,0.00028395,3]
[343488237,1732661446230,-500.0,0.00028395,3]
[343488239,1732661446240,-639.76753969,0.00028395,3]
[343488241,1732661446249,-500.0,0.00028395,3]
[343488243,1732661446259,-500.0,0.00028395,3]
[343488244,1732661446268,-500.0,0.00028395,3]
[343488245,1732661446277,-387.6660873,0.00028395,3]
[343488246,1732661446288,-500.0,0.00028395,3]
[343488247,1732661446297,-500.0,0.00028395,3]
[343488248,1732661446306,-500.0,0.00028395,3]
[343488249,1732661446316,-501.72703278,0.00028395,3]
[343488250,1732661446325,-500.0,0.00028395,3]
[343488251,1732661446334,-500.0,0.00028395,3]
[343488252,1732661446343,-500.0,0.00028395,3]
[343488253,1732661446355,-500.0,0.00028395,3]
[343488254,1732661446364,-500.0,0.00028395,3]
[343488255,1732661446373,-500.0,0.00028395,3]
[343488256,1732661446383,-500.0,0.00028395,3]
[343488257,1732661446394,-500.0,0.00028395,3]
[343488258,1732661446405,-522.48803552,0.00028395,3]
[343488259,1732661446417,-503.51319913,0.00028395,3]
[343488260,1732661446426,-500.0,0.00028395,3]
[343488261,1732661446436,-645.79,0.00028395,3]
[343488262,1732661446446,-500.0,0.00028395,3]
[343488263,1732661446458,-500.0,0.00028395,3]
[343488264,1732661446469,-500.0,0.00028395,3]
[343488265,1732661446479,-500.0,0.00028395,3]
[343488266,1732661446489,-500.0,0.00028395,3]
[343488267,1732661446499,-500.53882638,0.00028395,3]
[343488268,1732661446512,-500.0,0.00028395,3]
[343488269,1732661446521,-500.0,0.00028395,3]
[343488270,1732661446531,-500.0,0.00028395,3]
[343488271,1732661446542,-500.70702015,0.00028395,3]
[343488272,1732661446552,-500.0,0.00028395,3]
[343488273,1732661446562,-500.0,0.00028395,3]
[343488274,1732661446573,-500.0,0.00028395,3]
[343488275,1732661446583,-500.77716814,0.00028395,3]
[343488276,1732661446592,-500.0,0.00028395,3]
[343488277,1732661446602,-500.0,0.00028395,3]
[343488278,1732661446612,-500.0,0.00028395,3]
[343488279,1732661446622,-500.0,0.00028395,3]
[343488280,1732661446632,-500.0,0.00028395,3]
[343488281,1732661446643,-500.0,0.00028395,3]
[343488282,1732661446652,-500.0,0.00028395,3]
[343488283,1732661446662,-500.0,0.00028395,3]
[343488284,1732661446673,-500.0,0.00028395,3]
[343488285,1732661446682,-500.0,0.00028395,3]
[343488286,1732661446691,-500.0,0.00028395,3]
[343488287,1732661446701,-500.0,0.00028395,3]
[343488288,1732661446710,-500.0,0.00028395,3]
[343488289,1732661446720,-500.0,0.00028395,3]
[343488290,1732661446734,-507.70909683,0.00028395,3]
[343488291,1732661446743,-501.61558545,0.00028395,3]
[343488292,1732661446753,-523.99293222,0.00028395,3]
[343488293,1732661446763,-505.3871643,0.00028395,3]
[343488294,1732661446772,-505.0,0.00028395,3]
[343488295,1732661446782,-501.85697348,0.00028395,3]
[343488296,1732661446791,-500.0,0.00028395,3]